Cogmind - Beta 13 @@@ ROGUE MODE // 2024.05.17 @ 22:52:01 Player: BatSpy Result: Destroyed by Y-45 Defender with Heavy Assault Rifle Performance ------------- Evolutions (2) 1000 Regions Visited (4) 800 Robots Destroyed (44) 220 Value Destroyed (1221) 1221 Prototype IDs (7) 140 Alien Tech Used (0) 0 Bonus (0) 0 TOTAL SCORE: 3381 Bonus ------- None Cogmind --------- Core Integrity 0/550 Matter 290/300 Energy 220/300 System Corruption 0% Temperature Cool (9) Movement Core (1650) Ox32 Location -8/Materials Parts ------- > --- POWER (2) -------- Nuclear Core Light Nuclear Core > --- PROPULSION (4) --- (None) > --- UTILITY (3) ------ Huge Storage Unit ECM Suite Long-range Tractor Beam > --- WEAPON (2) ------- Katana Katana > --- INVENTORY (25) --- Improved Heat Sink Trap Scanner Hardened Medium Armor Plating Improved Light Armor Plating Reflective Plating Long-range Tractor Beam Long-range Tractor Beam Trap Extractor (0/4) Shock Rifle Plasma Cutter Peak State ------------ > --- POWER ------------ Light Ion Engine Nuclear Core > --- PROPULSION ------- Improved Treads Armored Treads Armored Treads Carbon-fiber Leg > --- UTILITY ---------- Huge Storage Unit Signal Interpreter Long-range Tractor Beam > --- WEAPON ----------- High-powered Shotgun Mace > --- INVENTORY -------- Light Ion Engine Nuclear Core Nuclear Core Nuclear Core Armored Treads Armored Treads Improved Heat Sink Improved Heat Sink Trap Scanner ECM Suite Hardened Medium Armor Plating Improved Light Armor Plating Reflective Plating Long-range Tractor Beam Long-range Tractor Beam Long-range Tractor Beam Trap Extractor Shock Rifle Plasma Cutter [Rating: 30] Favorites ----------- Power Nuclear Core Engine Ion Engine Power Core Nuclear Core Propulsion Aluminum Leg Treads Light Treads Leg Aluminum Leg Flight Unit Cesium-ion Thruster Utility Signal Interpreter Device Long-range Tractor Beam Storage Huge Storage Unit Processor Signal Interpreter Weapon Mace Energy Gun EM Pulse Gun Energy Cannon Light EM Pulse Cannon Ballistic Gun High-powered Shotgun Launcher Missile Launcher Impact Weapon Mace Slashing Weapon Katana Special Melee Weapon Datajack Build | -11 -10 -10 -9 -8 ------- Run | Yrd Mat Min Mat Mat Slots Evolved 4 | . . . 2 2 Power 1 | . . . . 1 Propulsion 2 | . . . 2 . Utility 1 | . . . . 1 Weapon . | . . . . . Parts Attached 64 | 6 16 2 12 28 Power 13 | 1 2 1 2 7 Engine 8 | 1 2 1 2 2 Core 5 | . . . . 5 Reactor . | . . . . . Propulsion 28 | 2 5 1 8 12 Treads 16 | . 5 1 3 7 Leg 10 | 2 . . 5 3 Wheel . | . . . . . Hover . | . . . . . Flight 2 | . . . . 2 Utility 11 | 1 4 . . 6 Device 6 | . . . . 6 Storage 4 | 1 3 . . . Processor 1 | . 1 . . . Hackware . | . . . . . Protection . | . . . . . Artifact . | . . . . . Weapon 12 | 2 5 . 2 3 Energy Gun 2 | 2 . . . . Energy Cannon 1 | . 1 . . . Ballistic Gun 1 | . . . . 1 Ballistic Cannon . | . . . . . Launcher 1 | . . . 1 . Special Weapon . | . . . . . Impact Weapon 4 | . 3 . 1 . Slashing Weapon 2 | . . . . 2 Piercing Weapon . | . . . . . Special Melee Weapon 1 | . 1 . . . Unidentified Prototypes . | . . . . . Parts Lost 36 | . 4 . 8 24 Power 10 | . 2 . 2 6 Propulsion 18 | . 1 . 5 12 Utility 3 | . . . . 3 Weapon 5 | . 1 . 1 3 Highest Loss Streak 13 | . 2 . 4 13 To Critical Strikes . | . . . . . Average Slot Usage (%) 94 | . 95 86 96 90 Engine 8 | . 12 1 10 4 Core 3 | . . . . 11 Treads 17 | . 20 28 20 10 Leg 16 | . 7 . 20 20 Device 2 | . . . . 8 Storage 11 | . 14 14 11 9 Processor 10 | . 13 14 11 8 Launcher 1 | . . . 4 . Impact Weapon 13 | . 15 28 16 7 Slashing Weapon 1 | . . . . 5 Special Melee Weapon 2 | . 7 . . . Naked Turns . | . . . . . Heaviest Build 101 | 14 89 89 93 101 Greatest Support 83 | 20 40 40 83 40 Greatest Overweight (x) 27 | 4 27 2 2 9 Average Overweight (x) 1 | . 1 2 1 2 Largest Inventory Capacity 25 | 8 25 25 25 25 Average Capacity 23 | 7 20 25 25 25 Most Carried 25 | 5 14 18 25 25 Average Carried 15 | . 8 13 18 19 Final Capacity 25 | 8 25 25 25 25 Final Carried 25 | . 12 17 25 10 Class Distribution -------------------- 100% | Mutant Dominant Class ---------------- Mutant | -10/Materials Mutant | -10/Mines Mutant | -9/Materials Mutant | -8/Materials Resources | -11 -10 -10 -9 -8 ----------- Run | Yrd Mat Min Mat Mat Matter Collected 820 | 219 191 20 154 236 Remotely 158 | . . . . 158 Salvage Created 1322 | . 296 . 482 544 Parts 41 | . 8 . 11 22 Haulers Intercepted . | . . . . . Recyclers Shooed . | . . . . . Parts Field Recycled . | . . . . . Retrieved Matter . | . . . . . Parts Self-Destructed . | . . . . . Prevented . | . . . . . Kills | -11 -10 -10 -9 -8 ------- Run | Yrd Mat Min Mat Mat Combat Hostiles Destroyed 35 | . 10 . 12 13 Melee 19 | . 6 . 4 9 Guns 3 | . . . . 3 AOE 2 | . . . 2 . Classes Destroyed 8 | . 4 . 4 . Worker 2 | . 2 . . . Builder 2 | . . . 1 1 Tunneler 1 | . . . 1 . Watcher 4 | . 1 . 2 1 Swarmer 10 | . 5 . 2 3 Grunt 21 | . 5 . 7 9 Duelist 1 | . . . 1 . Sentry 3 | . . . 2 1 Best Kill Streak 4 | . 3 . 4 4 Combat Bots Only 4 | . 3 . 4 4 Max Kills in Single Turn 2 | . 1 . 2 2 Gunslinging . | . . . . . Exploded 1 | . . . 1 . Melee 2 | . 1 . 1 2 Uniques/NPCs Destroyed . | . . . . . Combat | -11 -10 -10 -9 -8 -------- Run | Yrd Mat Min Mat Mat Hostile Shots Fired 578 | . 131 1 163 283 Missed 149 | . 42 1 45 61 Damage Taken 5593 | . 852 . 1605 3136 Core 1054 | . 236 . 259 559 Absorbed by Shields . | . . . . . Core Remaining (%) 46 | 100 . 5 35 . Volleys Fired 24 | . 7 . 3 14 Largest 2 | . 2 . 1 1 Hottest 90 | . 90 . 36 25 Shots Fired 26 | . 9 . 3 14 Gun 21 | . 7 . . 14 Cannon 2 | . 2 . . . Launcher 3 | . . . 3 . Special . | . . . . . Kinetic 14 | . . . . 14 Thermal 2 | . 2 . . . Explosive 3 | . . . 3 . Electromagnetic 7 | . 7 . . . Robot Hit Streak 19 | . 1 . 4 19 Robot Miss Streak 6 | . 6 . . 5 Penetration Max . | . . . . . Secondary Targets . | . . . . . Shots Hit Robots 112 | . 23 . 40 49 Core Hits 29 | . 5 . 8 16 Critical Kills 3 | . 2 . 1 . Critical Parts Destroyed 16 | . 5 . 10 1 Critical Strikes 23 | . 7 . 12 4 Smash 20 | . 7 . 12 1 Sever 3 | . . . . 3 Melee Attacks 121 | . 26 . 50 45 Impact 104 | . 26 . 50 28 Slashing 17 | . . . . 17 Piercing . | . . . . . Sneak Attacks 3 | . 2 . 1 . Combat Hostiles . | . . . . . Follow-up Attacks 8 | . 1 . 4 3 Damage Inflicted 3630 | . 802 . 1365 1463 Guns 355 | . 24 . . 331 Cannons 40 | . 40 . . . Explosions 199 | . . . 199 . Melee 3036 | . 738 . 1166 1132 Ramming . | . . . . . Kinetic 331 | . . . . 331 Thermal 12 | . 12 . . . Explosive 199 | . . . 199 . Electromagnetic 52 | . 52 . . . Impact 2593 | . 738 . 1166 689 Slashing 443 | . . . . 443 Piercing . | . . . . . Highest Corruption . | . . . . . Average Corruption . | . . . . . Corruption Purged . | . . . . . Corruption Blocked . | . . . . . Overload Shots . | . . . . . Overflow Damage 760 | . 280 . 398 82 Projectiles . | . . . . . Explosions . | . . . . . Melee 760 | . 280 . 398 82 Knockbacks 15 | . 4 . 8 3 Impact 15 | . 4 . 8 3 Kinetic . | . . . . . Secondary . | . . . . . Self-Inflicted Damage . | . . . . . Shots . | . . . . . Rammed . | . . . . . Targets Rammed . | . . . . . Kicked . | . . . . . Crushed . | . . . . . Highest Temperature 60 | . 60 . 1 19 Average Temperature 14 | . 26 . 1 6 Received Heat Transfer 2310 | . 252 . 537 1521 Siege Activations . | . . . . . Robots Corrupted . | . . . . . Combat Hostiles . | . . . . . Parts Fried 16 | . 6 . 7 3 Impact Corruptions 36 | . 12 . 18 6 Robots Melted . | . . . . . Combat Hostiles . | . . . . . Parts Melted . | . . . . . Heat Transferred 37 | . 37 . . . Parts Sabotaged . | . . . . . Parts Stolen . | . . . . . Parts Stripped . | . . . . . Power Chain Reactions . | . . . . . Alert | -11 -10 -10 -9 -8 ------- Run | Yrd Mat Min Mat Mat Peak Influence 197 | . 172 27 197 148 Initial 27 | . . 27 10 . Average 48 | . 40 27 56 50 Maximum Alert Level . | . . . . . Low Security (%) 100 | 100 100 100 100 100 Level 1 . | . . . . . Level 2 . | . . . . . Level 3 . | . . . . . Level 4 . | . . . . . Level 5 . | . . . . . High Security . | . . . . . Max Security . | . . . . . Squads Dispatched 8 | . 2 1 2 3 Investigation 2 | . . 1 . 1 Extermination . | . . . . . Reinforcement 5 | . 2 . 2 1 Assault . | . . . . . Garrison 1 | . . . . 1 Intercept . | . . . . . Searches Triggered . | . . . . . Construction Impeded . | . . . . . Haulers Reinforced . | . . . . . Active Scanning Responses . | . . . . . Cargo Convoy Interrupts . | . . . . . Stealth | -11 -10 -10 -9 -8 --------- Run | Yrd Mat Min Mat Mat Distress Signals 9 | . 1 . 4 4 Communications Jammed . | . . . . . Distress Signals . | . . . . . Times Spotted 81 | . 18 2 33 28 Peak Tracking Total 7 | . 5 2 7 7 Tactical Retreats 12 | . 2 . 5 5 Traps | -11 -10 -10 -9 -8 ------- Run | Yrd Mat Min Mat Mat Traps Triggered 2 | . 1 . . 1 Indirectly . | . . . . . Trap Hack Attempts . | . . . . . Triggered . | . . . . . Disarmed . | . . . . . Reprogrammed 1 | . . . . 1 Reused 1 | . . . . 1 Traps Extracted . | . . . . . Installed . | . . . . . Triggered 1 | . . . . 1 Machines | -11 -10 -10 -9 -8 ---------- Run | Yrd Mat Min Mat Mat Machines Disabled . | . . . . . Max in Single Turn . | . . . . . Machines Repaired . | . . . . . Machines Dismantled . | . . . . . Machines Sabotaged . | . . . . . Overloaded Fab Kills . | . . . . . Hacking | -11 -10 -10 -9 -8 --------- Run | Yrd Mat Min Mat Mat Machines Accessed 13 | . 3 1 5 4 Terminals 10 | . 3 . 5 2 Fabricators . | . . . . . Repair Stations . | . . . . . Recycling Units . | . . . . . Scanalyzers 1 | . . . . 1 Garrison Access 1 | . . . . 1 Total Hacks 28 | . 6 1 13 8 Successful 17 | . 4 1 6 6 Failed 11 | . 2 . 7 2 Catastrophic 3 | . . . 3 . Database Lockouts . | . . . . . Manual . | . . . . . Terminals 23 | . 6 . 13 4 Fabricators . | . . . . . Repair Stations . | . . . . . Recycling Units . | . . . . . Scanalyzers 2 | . . . . 2 Garrison Access 2 | . . . . 2 Terminal Hacks 14 | . 4 1 6 3 Record 2 | . 1 . 1 . Prototype ID Bank 4 | . 2 . 1 1 Open Door 1 | . . 1 . . Emergency Access Points 1 | . . . 1 . Alert Level 1 | . . . 1 . Locate Traps 1 | . . . . 1 Reprogram Traps 1 | . . . . 1 Transport Status 1 | . . . 1 . Hauler Manifests 1 | . . . 1 . Zone Layout 1 | . 1 . . . Fabricator Hacks . | . . . . . Repair Station Hacks . | . . . . . Recycling Unit Hacks . | . . . . . Scanalyzer 2 | . . . . 2 Insert Component 1 | . . . . 1 Analyze 1 | . . . . 1 Garrison Access Hacks 1 | . . . . 1 Coupler Status 1 | . . . . 1 Unauthorized Hacks . | . . . . . Terminals . | . . . . . Fabricators . | . . . . . Repair Stations . | . . . . . Recycling Units . | . . . . . Scanalyzers . | . . . . . Garrison Access . | . . . . . Data Cores Recovered . | . . . . . Used . | . . . . . Hacking Detections 9 | . 3 . 4 2 Full Trace Events 1 | . . . 1 . Feedback Events . | . . . . . Feedback Blocked . | . . . . . Robot Schematics Acquired . | . . . . . Robots Built . | . . . . . Authchips . | . . . . . Time . | . . . . . Total Robot Build Rating . | . . . . . Part Schematics Acquired 1 | . . . . 1 Parts Built . | . . . . . Authchips . | . . . . . Time . | . . . . . Total Part Build Rating . | . . . . . Parts Repaired . | . . . . . Time . | . . . . . Parts Recycled . | . . . . . Recycled Matter . | . . . . . Retrieved Matter . | . . . . . Retrieved Components . | . . . . . Parts Scanalyzed 1 | . . . . 1 Part Schematics Acquired 1 | . . . . 1 Parts Damaged 1 | . . . . 1 Bothacking | -11 -10 -10 -9 -8 ------------ Run | Yrd Mat Min Mat Mat Used RIF Installer . | . . . . . Robots Hacked . | . . . . . Non-combat . | . . . . . Combat . | . . . . . Robot Hacks Applied . | . . . . . Relay Couplers Released . | . . . . . Fabnet Peak Effective % . | . . . . . Robots Rewired . | . . . . . Allies Hacked . | . . . . . Hacks Repelled . | . . . . . Allies | -11 -10 -10 -9 -8 -------- Run | Yrd Mat Min Mat Mat Total Allies . | . . . . . Largest Group . | . . . . . Highest-Rated Group . | . . . . . Highest-Rated Ally . | . . . . . Total Orders . | . . . . . Ally Attacks . | . . . . . Total Damage . | . . . . . Kills . | . . . . . Allies Corrupted . | . . . . . Allies Melted . | . . . . . Intel | -11 -10 -10 -9 -8 ------- Run | Yrd Mat Min Mat Mat Robot Analysis Total . | . . . . . Derelict Logs Recovered . | . . . . . Drone Launches . | . . . . . Drone Recoveries . | . . . . . Exploration | -11 -10 -10 -9 -8 ------------- Run | Yrd Mat Min Mat Mat Turns Passed 3482 | 53 913 90 1272 1154 Spaces Moved 1123 | 33 329 26 437 298 Core 10 | 9 1 . . . Treads 500 | . 185 26 241 48 Legs 613 | 24 143 . 196 250 Wheels . | . . . . . Hover . | . . . . . Flight . | . . . . . Fastest Speed 50 | 50 120 320 240 260 Average Speed 261 | 113 236 320 248 318 Slowest Speed 1400 | 250 1400 320 260 750 Overloaded Moves . | . . . . . Propulsion Burnouts . | . . . . . Robots Hopped . | . . . . . Cave-ins Triggered . | . . . . . Exploration Rate (%) 27 | 4 49 12 46 25 Regions Visited 4 Branch Regions 1 Pre-discovered Areas . | . . . . . Known Exits Taken 3 | . 1 1 1 . Unknown Exits Taken 1 | 1 . . . . Scrap Searched . | . . . . . Spaces Dug . | . . . . . Terrain Destroyed . | . . . . . Melee . | . . . . . Projectile . | . . . . . AOE . | . . . . . Terrain Rammed . | . . . . . Walls Destroyed . | . . . . . Machines Disabled . | . . . . . Actions | -11 -10 -10 -9 -8 --------- Run | Yrd Mat Min Mat Mat Total 1452 | 49 411 35 540 417 Wait 39 | 3 4 . 12 20 Move 1119 | 32 328 25 436 298 Hop . | . . . . . Pick Up 75 | 7 25 7 25 11 Fast Attach . | . . . . . Attach 46 | 6 7 1 10 22 Detach . | . . . . . Swap 18 | . 9 1 2 6 Drop 19 | 1 6 1 7 4 Fire 24 | . 7 . 3 14 Melee 112 | . 25 . 45 42 Ram . | . . . . . Kick . | . . . . . Crush . | . . . . . Escape Stasis . | . . . . . Rewire . | . . . . . Trap . | . . . . . Miscellaneous . | . . . . . Route ------- -11/Scrapyard -10/Materials (discovered 2 exits: *Mat / *Min) -10/Mines -9/Materials (discovered 3 exits: *Mat / *Min x2) -8/Materials History --------- Turn | Location | Event 10 | -11/Scrapyard | Discovered new exit (range 16) 54 | -11/Scrapyard | Entered Materials 309 | -10/Materials | Build established: Mutant 413 | -10/Materials | Discovered new exit (range 16) 501 | -10/Materials | Identified exit to Materials 758 | -10/Materials | Core integrity fell below 50% 875 | -10/Materials | Discovered new exit (range 14) 919 | -10/Materials | Core integrity fell below 20% 963 | -10/Materials | Identified exit to Mines 967 | -10/Materials | Entered Mines 976 | -10/Mines | Discovered exit to Materials (range 7) 1006 | -10/Mines | Met a Derelict shopkeep closing up shop 1057 | -10/Mines | Entered Materials 1057 | -9/Materials | Evolved 2 slots: Propulsion x2 1187 | -9/Materials | Discovered new exit (range 11) 1211 | -9/Materials | Identified exit to Mines 1517 | -9/Materials | Discovered exit to Mines (range 9) 1767 | -9/Materials | Core integrity fell below 50% 1786 | -9/Materials | Lost 4 parts (1p3n) 2318 | -9/Materials | Discovered new exit (range 4) 2326 | -9/Materials | Identified exit to Materials 2329 | -9/Materials | Entered another Materials area 2329 | -8/Materials | Evolved 2 slots: Power x1, Utility x1 2483 | -8/Materials | Garrison activated, responded to threat 2589 | -8/Materials | Lost 3 parts (1p1n1w) 3058 | -8/Materials | Core integrity fell below 50% 3101 | -8/Materials | Core integrity fell below 20% 3114 | -8/Materials | Lost 13 parts (3p7n1u2w) 3483 | -8/Materials | Destroyed by Y-45 Defender with Heavy Assault Rifle Last Messages --------------- Critical hit (Burn: +37). Nuclear Core destroyed. Signal Interpreter destroyed. Cesium-ion Thruster destroyed. Nuclear Core destroyed. G-47 Trooper destroyed. Katana follow-up attack on G-47 Trooper. G-47 Trooper destroyed. [Achievement: Ambidextrous] Acquired 35 matter. Y-45 Defender Lgt. Treads severed. ALERT: Hostiles spotted, dispatching reinforcements to Terminal M005. Arm. Treads destroyed. R-06 Scavenger collects Lgt. Treads. R-06 Scavenger collects Imp. Heat Sink. Y-45 Defender Heat Sink severed. R-06 Scavenger collects Heat Sink. Arm. Treads destroyed. R-06 Scavenger collects Aluminum Leg. Map ----- +----------------------------------------------------+ | | | ?????????????????????????????????????????????????? | | ?????????????????????????????????????????????????? | | ?????????????????????????????????????????????????? | | ?????????????????????????????????????????????????? | | ?????????????????????????????????????????????????? | | ?????????????????????????????????????????????????? | | ?????????????????????????????????????????????????? | | ?????############????????????????????????????????? | | ###### # #????????????????????????????????? | | [# # T #????????????????????????????????? | | " # # #????#+#?????????????????????????? | | "G" + + ! #??# ????????????????????????? | | " " # # #??? ????????????????????????? | | # # #??? ????????????????????????? | | ! # ########??? ????????????????????????? | | ###### #?????????? ! ????????????????????????? | | ?????# #??????????# #????????????????????????? | | ?????# #??????????# #????????????????????????? | | ###### #??????????# #????????????????????????? | | # #??????????# #########????????????????? | | """ # #??????????# # ?????????????????? | | """ # #??????????# #[ """""?????????????????? | | """ # #??????????# #r """""?????????????????? | | """ # #??????????# #g """""?????????????????? | | """ # #??????????# YY@ """""?????????????????? | | + #??????????# u# """""?????????????????? | | # #??????????# # """""?????????????????? | | # #??????????# # """""?????????????????? | | ###### ##?????????# # ?????????????????? | | ????# ########### ########?????????????????? | | ????# #?????????????????? | | ????# % #?????????????????? | | ????# % #?######??????????? | | ????# ###+########+##### #? #??????????? | | ????####### #?????????# # #??????????? | | ??????????# #?????????# # #??????????? | | ??????????# #?????????# + """ #??????????? | | ??????????# """ #?????????# # """ #??????????? | | ??????????# """ #?????????# # """ #??????????? | | ??????????#! """ #?????????# ########??????????? | | ????????###+######?????????# # #??????????? | | ????????# #?????????????# # #??????????? | | ######### !!#?????????????# # """ #??????????? | | + !!############### + """ #??????????? | | ######### # # """ #??????????? | | ????????#! [ # # #??????????? | | ????????###### % ########??????????? | | ???????????####+############ #?????????????????? | | ############ #??????# #?????????????????? | +----------------------------------------------------+ Best States ------------- Heat Dissipation 45 Energy Generation 23 Energy Capacity 380 Matter Stores 300 Matter Capacity 300 Sight Range 16 Terrain Scan Density 10 ECM Strength 1 Evasion (%) 55 Recoil Reduction 4 Item Schematics ----------------- Lrn. Tractor Beam | -8/Materials | Scanalyzed Robot Schematics ------------------ None Fabricated ------------ Nothing Alien Tech Used ----------------- None Achievements -------------- Ambidextrous Use The Force Challenges ------------ None Game ------ Seed IntegratedEfficiencyRigger Manual? 0 Play Time 00:28:43 Cumulative 10.3 hours Start 2024.05.17 @ 22:20:36 End 2024.05.17 @ 22:52:01 Sessions 1 Manual Loads 0 Difficulty Rogue Special Mode None Game No. 18 Rogue 18 Adventurer 0 Explorer 0 Win Type - Total 0 Types 0/0/0/0/0/0/0/0/0 Lore% 11 Gallery% 21 Achievement% 18 Wizard Run 0 Options --------- Layout 1 ASCII 0 Keyboard 0 Movement Mouse Keybinds 0 Fullscreen 2 Font 32/SmallcapsGlow Map View 50x35 Zoom Use 0% Tactical HUD 0 Map Filters NONE Filters NONE Steam 1 RUN: df16fc3a-bfce-4138-83e9-fb36a7948aa2